[Event "Asian Amateur Rapid 2024"]
[Site "Al Ain"]
[Date "2024.12.15"]
[Round "2.12"]
[White "Muhammad Shayan Noushad Ibrahi"]
[Black "Lee, Onbin"]
[Result "1-0"]
[ECO "B50"]
[WhiteElo "1716"]
[BlackElo "1686"]
[Annotator "NA RC"]
[PlyCount "75"]
[EventDate "2024.12.15"]
[EventType "swiss"]
[EventCountry "UAE"]
[SourceTitle "playchess.com"]
[Source "ChessBase"]
[SourceQuality "1"]
[TimeControl "900+10"]

1. e4 {[%emt 0:00:01]} c5 {[%emt 0:00:02]} 2. Nf3 {[%emt 0:00:02]} d6 {[%emt 0:00:01]} 3. c3 {[%emt 0:00:02]} Nf6 {[%emt 0:00:05]} 4. Be2 {[%emt 0:00:02]} Nc6 {[%emt 0:00:28]} 5. d4 {[%emt 0:00:02]} Bg4 {[%emt 0:01:00]} 6. d5 {[%emt 0:00:06]} Nb8 {[%emt 0:00:38]} 7. O-O {[%emt 0:00:23]} g6 {[%emt 0:00:07]} 8. Re1 {[%emt 0:00:07]} Nbd7 {[%emt 0:00:12]} 9. Bf1 {[%emt 0:00:02]} Bg7 {[%emt 0:00:05]} 10. Nbd2 {[%emt 0:00:05]} O-O {[%emt 0:00:14]} 11. h3 {[%emt 0:00:02]} Bxf3 {[%emt 0:00:03]} 12. Nxf3 {[%emt 0:00:03]} a6 {[%emt 0:00:43]} 13. Bf4 {[%emt 0:00:32]} Nh5 {[%emt 0:00:45]} 14. Bh2 {[%emt 0:00:05]} Qc7 {[%emt 0:05:43]} 15. g4 {[%emt 0:01:01]} Nhf6 {[%emt 0:00:14]} 16. e5 {[%emt 0:00:01]} dxe5 {[%emt 0:01:02]} 17. Nxe5 {[%emt 0:00:07]} Nxe5 {[%emt 0:00:05]} 18. Bxe5 {[%emt 0:00:04]} Qd7 {[%emt 0:00:11]} 19. Bg2 {[%emt 0:00:11]} Rad8 {[%emt 0:00:16]} 20. c4 {[%emt 0:00:17]} b5 {[%emt 0:00:17]} 21. b3 {[%emt 0:00:11]} Ne8 {[%emt 0:01:26]} 22. Bxg7 {[%emt 0:00:27]} Nxg7 {[%emt 0:00:02]} 23. Qe2 {[%emt 0:00:05]} Rfe8 {[%emt 0:00:21]} 24. Rad1 {[%emt 0:00:23]} h5 {[%emt 0:00:12]} 25. f4 {[%emt 0:01:22]} b4 {[%emt 0:02:37]} 26. Qf3 {[%emt 0:01:43]} Qd6 {[%emt 0:00:57]} 27. Kf2 {[%emt 0:02:07]} a5 {[%emt 0:00:04]} 28. Kg1 {[%emt 0:01:51]} Ra8 {[%emt 0:00:11]} 29. Qe3 {[%emt 0:00:43]} a4 {[%emt 0:00:11]} 30. Bf3 {[%emt 0:00:36]} axb3 {[%emt 0:00:18]} 31. axb3 {[%emt 0:00:02]} Ra2 {[%emt 0:00:26]} 32. gxh5 {[%emt 0:00:23]} Nxh5 {[%emt 0:00:05]} 33. Bxh5 {[%emt 0:00:19]} gxh5 {[%emt 0:00:03]} 34. Kh1 {[%emt 0:00:02]} Kh8 {[%emt 0:01:16]} 35. Qf3 {[%emt 0:00:39]} Qh6 {[%emt 0:00:26]} 36. Re5 {[%emt 0:00:08]} Qg6 {[%emt 0:00:13]} 37. Rxh5+ {[%emt 0:00:04]} Kg7 {[%emt 0:00:03]} 38. Rg5 {[%emt 0:00:00]} 1-0

[Event "Asian Amateur Rapid 2024"]
[Site "Al Ain"]
[Date "2024.12.15"]
[Round "2.13"]
[White "Farhaan, M."]
[Black "Kalikhan, Abilmansur"]
[Result "1-0"]
[ECO "A75"]
[WhiteElo "1695"]
[BlackElo "1731"]
[Annotator "NA RC"]
[PlyCount "65"]
[EventDate "2024.12.15"]
[EventType "swiss"]
[EventCountry "UAE"]
[SourceTitle "playchess.com"]
[Source "ChessBase"]
[SourceQuality "1"]
[TimeControl "900+10"]

1. d4 {[%emt 0:00:02]} Nf6 {[%emt 0:00:16]} 2. c4 {[%emt 0:00:01]} c5 {[%emt 0:00:02]} 3. d5 {[%emt 0:00:01]} e6 {[%emt 0:00:01]} 4. Nc3 {[%emt 0:00:02]} exd5 {[%emt 0:00:02]} 5. cxd5 {[%emt 0:00:01]} d6 {[%emt 0:00:03]} 6. e4 {[%emt 0:00:01]} g6 {[%emt 0:00:02]} 7. Nf3 {[%emt 0:00:29]} a6 {[%emt 0:00:10]} 8. a4 {[%emt 0:00:01]} Bg4 {[%emt 0:00:02]} 9. Be2 {[%emt 0:00:02]} Bxf3 {[%emt 0:00:03]} 10. Bxf3 {[%emt 0:00:02]} Bg7 {[%emt 0:00:01]} 11. Bf4 {[%emt 0:00:12]} O-O {[%emt 0:00:12]} 12. O-O {[%emt 0:00:02]} Re8 {[%emt 0:01:11]} 13. Re1 {[%emt 0:00:02]} Qc7 {[%emt 0:00:38]} 14. Rc1 {[%emt 0:02:13]} Nbd7 {[%emt 0:02:29]} 15. b4 {[%emt 0:00:07]} Rad8 {[%emt 0:01:11]} 16. g3 {[%emt 0:01:05]} b6 {[%emt 0:01:17]} 17. b5 {[%emt 0:00:33]} a5 {[%emt 0:00:16]} 18. Nb1 {[%emt 0:00:01]} Ne5 {[%emt 0:00:28]} 19. Bxe5 {[%emt 0:00:10]} Rxe5 {[%emt 0:00:03]} 20. Na3 {[%emt 0:00:01]} Rde8 {[%emt 0:00:58]} 21. Nc4 {[%emt 0:00:03]} R5e7 {[%emt 0:00:01]} 22. e5 {[%emt 0:00:29]} Qd8 {[%emt 0:03:07]} 23. Nxd6 {[%emt 0:00:30]} Qxd6 {[%emt 0:00:37]} 24. exd6 {[%emt 0:00:03]} Rxe1+ {[%emt 0:00:02]} 25. Qxe1 {[%emt 0:00:01]} Rxe1+ {[%emt 0:00:01]} 26. Rxe1 {[%emt 0:00:02]} Bf8 {[%emt 0:00:02]} 27. Re8 {[%emt 0:00:47]} Kg7 {[%emt 0:00:36]} 28. Rd8 {[%emt 0:00:04]} c4 {[%emt 0:00:48]} 29. Kf1 {[%emt 0:00:51]} h5 {[%emt 0:00:51]} 30. d7 {[%emt 0:00:29]} Be7 {[%emt 0:01:27]} 31. Re8 {[%emt 0:00:02]} c3 {[%emt 0:00:15]} 32. Rxe7 {[%emt 0:00:28]} c2 {[%emt 0:00:02]} 33. Re1 {[%emt 0:00:02]} 1-0

[Event "Asian Amateur Rapid 2024"]
[Site "Al Ain"]
[Date "2024.12.15"]
[Round "2.14"]
[White "Humaidan Mohamed, Alzaabi"]
[Black "Abdulrahim, Salem"]
[Result "0-1"]
[ECO "B25"]
[WhiteElo "1811"]
[BlackElo "1843"]
[Annotator "NA RC"]
[PlyCount "94"]
[EventDate "2024.12.15"]
[EventType "swiss"]
[EventCountry "UAE"]
[SourceTitle "playchess.com"]
[Source "ChessBase"]
[SourceQuality "1"]
[TimeControl "900+10"]

1. e4 {[%emt 0:00:02]} c5 {[%emt 0:00:02]} 2. Nc3 {[%emt 0:00:20]} Nc6 {[%emt 0:00:03]} 3. g3 {[%emt 0:00:02]} g6 {[%emt 0:00:01]} 4. Bg2 {[%emt 0:00:01]} Bg7 {[%emt 0:00:02]} 5. Nge2 {[%emt 0:00:02]} d6 {[%emt 0:00:02]} 6. O-O {[%emt 0:00:03]} e6 {[%emt 0:00:01]} 7. d3 {[%emt 0:00:01]} Nge7 {[%emt 0:00:02]} 8. f4 {[%emt 0:00:11]} O-O {[%emt 0:00:04]} 9. g4 {[%emt 0:00:10]} f5 {[%emt 0:00:02]} 10. g5 {[%emt 0:00:01]} Rb8 {[%emt 0:00:09]} 11. Ng3 {[%emt 0:00:10]} Nd4 {[%emt 0:00:05]} 12. Nce2 {[%emt 0:00:06]} Nxe2+ {[%emt 0:00:20]} 13. Qxe2 {[%emt 0:00:03]} b5 {[%emt 0:00:06]} 14. a3 {[%emt 0:01:11]} a5 {[%emt 0:00:03]} 15. h4 {[%emt 0:00:13]} Qd7 {[%emt 0:00:29]} 16. Rb1 {[%emt 0:01:20]} Bb7 {[%emt 0:00:17]} 17. Re1 {[%emt 0:00:37]} Rbe8 {[%emt 0:00:18]} 18. Bd2 {[%emt 0:01:33]} b4 {[%emt 0:00:05]} 19. axb4 {[%emt 0:00:01]} axb4 {[%emt 0:00:03]} 20. c3 {[%emt 0:00:01]} fxe4 {[%emt 0:00:38]} 21. dxe4 {[%emt 0:01:36]} bxc3 {[%emt 0:00:29]} 22. bxc3 {[%emt 0:00:43]} d5 {[%emt 0:00:24]} 23. e5 {[%emt 0:00:33]} Bc6 {[%emt 0:00:21]} 24. Bh3 {[%emt 0:04:02]} Ba4 {[%emt 0:02:56]} 25. Qa6 {[%emt 0:01:00]} Bc6 {[%emt 0:01:41]} 26. Qb6 {[%emt 0:00:45]} c4 {[%emt 0:00:38]} 27. Be3 {[%emt 0:02:07]} Rc8 {[%emt 0:01:15]} 28. Rb4 {[%emt 0:01:06]} Nf5 {[%emt 0:00:39]} 29. Nxf5 gxf5 {[%emt 0:00:01]} 30. Reb1 {[%emt 0:01:08]} Qf7 {[%emt 0:00:03]} 31. Bf2 {[%emt 0:00:30]} Qh5 {[%emt 0:00:39]} 32. Qe3 {[%emt 0:00:02]} Ra8 {[%emt 0:00:06]} 33. R4b2 {[%emt 0:00:27]} Ra3 {[%emt 0:00:31]} 34. Qg3 {[%emt 0:00:20]} d4 {[%emt 0:01:37]} 35. Bxd4 {[%emt 0:00:08]} Be4 {[%emt 0:00:02]} 36. Bc5 {[%emt 0:00:16]} Bxb1 {[%emt 0:02:24]} 37. Bxa3 {[%emt 0:00:04]} Qd1+ {[%emt 0:00:07]} 38. Bf1 {[%emt 0:00:19]} Bd3 {[%emt 0:00:04]} 39. Qf2 {[%emt 0:00:01]} Ra8 {[%emt 0:00:12]} 40. Bc5 {[%emt 0:00:17]} Ra1 {[%emt 0:00:33]} 41. Rb8+ {[%emt 0:00:05]} Kf7 {[%emt 0:00:01]} 42. Rb7+ {[%emt 0:00:01]} Kg6 {[%emt 0:00:02]} 43. h5+ {[%emt 0:00:21]} Qxh5 {[%emt 0:00:02]} 44. Rxg7+ {[%emt 0:00:09]} Kxg7 {[%emt 0:00:07]} 45. Bf8+ {[%emt 0:00:07]} Kxf8 {[%emt 0:00:35]} 46. Qc5+ {[%emt 0:00:01]} Kg7 {[%emt 0:00:01]} 47. Qe7+ {[%emt 0:00:30]} Qf7 {[%emt 0:00:02]} 0-1

[Event "Asian Amateur Rapid 2024"]
[Site "Al Ain"]
[Date "2024.12.15"]
[Round "2.15"]
[White "Aamer Saeed, Alyileili"]
[Black "Ghaith Saeed Alnuaimi"]
[Result "0-1"]
[ECO "B23"]
[WhiteElo "1619"]
[BlackElo "1870"]
[Annotator "NA RC"]
[PlyCount "69"]
[EventDate "2024.12.15"]
[EventType "swiss"]
[EventCountry "UAE"]
[SourceTitle "playchess.com"]
[Source "ChessBase"]
[SourceQuality "1"]
[TimeControl "900+10"]

1. e4 {[%emt 0:00:03]} c5 {[%emt 0:00:13]} 2. Nc3 {[%emt 0:00:10]} Nc6 {[%emt 0:00:07]} 3. Bb5 {[%emt 0:00:02]} e5 {[%emt 0:00:16]} 4. d3 {[%emt 0:01:30]} g6 {[%emt 0:00:14]} 5. Nge2 {[%emt 0:00:13]} Bg7 {[%emt 0:00:08]} 6. Nd5 {[%emt 0:00:10]} h6 {[%emt 0:00:21]} 7. O-O {[%emt 0:00:08]} Nge7 {[%emt 0:00:09]} 8. Nec3 {[%emt 0:00:07]} O-O {[%emt 0:00:21]} 9. Be3 {[%emt 0:00:09]} d6 {[%emt 0:00:27]} 10. Qd2 {[%emt 0:00:05]} Kh7 {[%emt 0:00:03]} 11. f4 {[%emt 0:00:28]} f5 {[%emt 0:00:39]} 12. a4 {[%emt 0:00:54]} Be6 {[%emt 0:00:23]} 13. Bc4 {[%emt 0:00:12]} Nd4 {[%emt 0:00:24]} 14. Nxe7 {[%emt 0:00:25]} Qxe7 {[%emt 0:00:09]} 15. Bxe6 {[%emt 0:00:19]} Nxe6 {[%emt 0:00:39]} 16. Nd5 {[%emt 0:00:02]} Qd7 {[%emt 0:00:18]} 17. c3 {[%emt 0:01:55]} Rf7 {[%emt 0:01:08]} 18. a5 {[%emt 0:01:58]} Raf8 {[%emt 0:00:43]} 19. h3 {[%emt 0:02:31]} Nc7 {[%emt 0:00:26]} 20. Nxc7 {[%emt 0:02:55]} Qxc7 {[%emt 0:00:03]} 21. g4 {[%emt 0:00:47]} fxe4 {[%emt 0:01:41]} 22. dxe4 {[%emt 0:00:02]} exf4 {[%emt 0:00:37]} 23. Bxf4 {[%emt 0:00:28]} g5 {[%emt 0:00:35]} 24. Bxd6 {[%emt 0:01:08]} Rxf1+ {[%emt 0:01:54]} 25. Rxf1 {[%emt 0:00:02]} Rxf1+ {[%emt 0:00:13]} 26. Kxf1 {[%emt 0:00:03]} Qxa5 {[%emt 0:00:09]} 27. e5 {[%emt 0:00:16]} Qa1+ {[%emt 0:00:07]} 28. Kg2 {[%emt 0:00:06]} Qb1 {[%emt 0:00:04]} 29. Qe2 {[%emt 0:00:28]} c4 {[%emt 0:01:12]} 30. e6 {[%emt 0:00:45]} Qd3 {[%emt 0:05:43]} 31. Qxd3+ {[%emt 0:00:02]} cxd3 {[%emt 0:00:08]} 32. Kf3 {[%emt 0:00:01]} Kg6 {[%emt 0:00:24]} 33. Ke3 {[%emt 0:00:01]} Kf6 {[%emt 0:00:06]} 34. Be5+ {[%emt 0:00:56]} Kg6 {[%emt 0:00:32]} 35. e7 {[%emt 0:00:18]} 0-1

[Event "Asian Amateur Rapid 2024"]
[Site "Al Ain"]
[Date "2024.12.15"]
[Round "2.16"]
[White "Eisa Mohmood, Alkhoori"]
[Black "Yahya Shuaib Al Kaff"]
[Result "0-1"]
[ECO "B56"]
[WhiteElo "1853"]
[BlackElo "1879"]
[Annotator "NA RC"]
[PlyCount "58"]
[EventDate "2024.12.15"]
[EventType "swiss"]
[EventCountry "UAE"]
[SourceTitle "playchess.com"]
[Source "ChessBase"]
[SourceQuality "1"]
[TimeControl "900+10"]

1. e4 {[%emt 0:00:01]} c5 {[%emt 0:00:01]} 2. Nf3 {[%emt 0:00:01]} d6 {[%emt 0:00:02]} 3. d4 {[%emt 0:00:01]} cxd4 {[%emt 0:00:01]} 4. Nxd4 {[%emt 0:00:01]} Nf6 {[%emt 0:00:02]} 5. Nc3 {[%emt 0:00:01]} Nc6 {[%emt 0:00:03]} 6. Be3 {[%emt 0:00:05]} Ng4 {[%emt 0:00:03]} 7. Be2 {[%emt 0:00:32]} Nxe3 {[%emt 0:00:06]} 8. fxe3 {[%emt 0:00:02]} e6 {[%emt 0:02:30]} 9. O-O {[%emt 0:00:39]} Be7 {[%emt 0:00:26]} 10. Bd3 {[%emt 0:01:50]} O-O {[%emt 0:00:38]} 11. Kh1 {[%emt 0:00:05]} Bf6 {[%emt 0:00:36]} 12. Nxc6 {[%emt 0:02:36]} bxc6 {[%emt 0:00:03]} 13. Qf3 {[%emt 0:01:34]} Be5 {[%emt 0:00:58]} 14. Rab1 {[%emt 0:01:32]} Qa5 {[%emt 0:01:14]} 15. b4 {[%emt 0:00:43]} Qb6 {[%emt 0:02:21]} 16. Na4 {[%emt 0:00:25]} Qc7 {[%emt 0:00:59]} 17. c4 {[%emt 0:00:18]} c5 {[%emt 0:00:58]} 18. bxc5 {[%emt 0:01:00]} dxc5 {[%emt 0:00:02]} 19. Rb5 {[%emt 0:00:20]} Bd7 {[%emt 0:07:17]} 20. Rfb1 {[%emt 0:03:49]} Bxb5 {[%emt 0:00:00]} 21. Rxb5 {[%emt 0:00:01]} Qd6 {[%emt 0:00:00]} 22. Bc2 {[%emt 0:00:19]} Rac8 {[%emt 0:00:00]} 23. Rb3 {[%emt 0:01:02]} Qa6 {[%emt 0:00:00]} 24. Nb2 {[%emt 0:01:00]} Qxa2 {[%emt 0:00:00]} 25. Qd1 {[%emt 0:01:02]} Bxb2 {[%emt 0:00:00]} 26. Bb1 {[%emt 0:00:03]} Rfd8 {[%emt 0:00:00]} 27. Qc2 {[%emt 0:00:04]} Qa5 {[%emt 0:00:00]} 28. g3 {[%emt 0:00:26]} Qe1+ {[%emt 0:00:00]} 29. Kg2 {[%emt 0:00:01]} Rd2+ {[%emt 0:00:00]} 0-1

[Event "Asian Amateur Rapid 2024"]
[Site "Al Ain"]
[Date "2024.12.15"]
[Round "2.17"]
[White "Raj Aryan"]
[Black "Vivaan Sachdev"]
[Result "0-1"]
[ECO "D03"]
[WhiteElo "1609"]
[BlackElo "1824"]
[Annotator "NA RC"]
[PlyCount "94"]
[EventDate "2024.12.15"]
[EventType "swiss"]
[EventCountry "UAE"]
[SourceTitle "playchess.com"]
[Source "ChessBase"]
[SourceQuality "1"]
[TimeControl "900+10"]

1. d4 {[%emt 0:00:02]} Nf6 {[%emt 0:00:08]} 2. Bg5 {[%emt 0:00:02]} d5 {[%emt 0:00:03]} 3. e3 {[%emt 0:00:01]} c5 {[%emt 0:00:10]} 4. c3 {[%emt 0:00:01]} Nc6 {[%emt 0:00:33]} 5. Nf3 {[%emt 0:00:02]} Ne4 {[%emt 0:00:09]} 6. Bf4 {[%emt 0:00:23]} cxd4 {[%emt 0:00:24]} 7. exd4 {[%emt 0:00:02]} g6 {[%emt 0:00:03]} 8. Nbd2 {[%emt 0:00:02]} Bf5 {[%emt 0:00:30]} 9. Ne5 {[%emt 0:00:41]} Bg7 {[%emt 0:01:09]} 10. f3 {[%emt 0:01:20]} Nd6 {[%emt 0:00:44]} 11. Qb3 {[%emt 0:00:16]} Be6 {[%emt 0:05:21]} 12. Bd3 {[%emt 0:01:19]} f6 {[%emt 0:00:50]} 13. Nxc6 {[%emt 0:01:07]} bxc6 {[%emt 0:00:04]} 14. O-O {[%emt 0:00:12]} O-O {[%emt 0:00:28]} 15. Rfe1 {[%emt 0:00:43]} Bf7 {[%emt 0:00:02]} 16. Qa3 {[%emt 0:00:05]} Nc8 {[%emt 0:01:17]} 17. Nb3 {[%emt 0:00:17]} Re8 {[%emt 0:00:07]} 18. Na5 {[%emt 0:01:14]} e5 {[%emt 0:00:36]} 19. Be3 {[%emt 0:00:17]} Bf8 {[%emt 0:00:39]} 20. b4 {[%emt 0:00:16]} Qc7 {[%emt 0:00:19]} 21. Qa4 {[%emt 0:00:48]} Re6 {[%emt 0:01:09]} 22. Qc2 {[%emt 0:01:13]} Nd6 {[%emt 0:00:16]} 23. a4 {[%emt 0:00:07]} Rae8 {[%emt 0:00:29]} 24. Kf1 {[%emt 0:00:40]} e4 {[%emt 0:00:02]} 25. fxe4 {[%emt 0:00:17]} Nxe4 {[%emt 0:00:02]} 26. Bxe4 {[%emt 0:00:37]} Rxe4 {[%emt 0:00:01]} 27. Bg1 {[%emt 0:00:24]} Qf4+ {[%emt 0:00:08]} 28. Qf2 {[%emt 0:00:05]} Rxe1+ {[%emt 0:00:05]} 29. Rxe1 {[%emt 0:00:04]} Rxe1+ {[%emt 0:00:03]} 30. Kxe1 {[%emt 0:00:56]} Qc1+ {[%emt 0:00:02]} 31. Ke2 {[%emt 0:00:02]} Qc2+ {[%emt 0:00:10]} 32. Kf1 {[%emt 0:02:41]} Qd3+ {[%emt 0:00:05]} 33. Qe2 {[%emt 0:00:39]} Qxc3 {[%emt 0:00:01]} 34. Bf2 {[%emt 0:00:43]} Bxb4 {[%emt 0:00:21]} 35. Be1 {[%emt 0:00:12]} Qc1 {[%emt 0:00:18]} 36. Nb3 {[%emt 0:00:28]} Qb1 {[%emt 0:00:45]} 37. Nd2 {[%emt 0:00:21]} Qa1 {[%emt 0:00:23]} 38. a5 {[%emt 0:01:34]} Qxd4 {[%emt 0:00:14]} 39. Nf3 {[%emt 0:00:21]} Qa1 {[%emt 0:00:03]} 40. a6 {[%emt 0:00:20]} d4 {[%emt 0:00:33]} 41. Kf2 {[%emt 0:00:10]} Bxe1+ {[%emt 0:00:28]} 42. Nxe1 {[%emt 0:00:03]} Kg7 {[%emt 0:00:20]} 43. Qd3 {[%emt 0:00:21]} c5 {[%emt 0:00:03]} 44. Qb5 {[%emt 0:00:32]} Qc3 {[%emt 0:00:20]} 45. h3 {[%emt 0:00:27]} c4 {[%emt 0:00:23]} 46. Qb7 {[%emt 0:00:06]} Qe3+ {[%emt 0:00:01]} 47. Kf1 {[%emt 0:00:03]} d3 {[%emt 0:00:05]} 0-1

[Event "Asian Amateur Rapid 2024"]
[Site "Al Ain"]
[Date "2024.12.15"]
[Round "2.18"]
[White "Ahmed Younes Alkhemeiri"]
[Black "Rashid Husain Alhammadi"]
[Result "0-1"]
[ECO "C55"]
[WhiteElo "1584"]
[BlackElo "1914"]
[Annotator "RC"]
[PlyCount "102"]
[EventDate "2024.12.15"]
[EventType "swiss"]
[EventCountry "UAE"]
[SourceTitle "playchess.com"]
[Source "ChessBase"]
[SourceQuality "1"]
[TimeControl "900+10"]

1. e4 {[%emt 0:00:02]} e5 {[%emt 0:00:02]} 2. Nf3 {[%emt 0:00:02]} Nc6 {[%emt 0:00:02]} 3. Bc4 {[%emt 0:00:01]} Nf6 {[%emt 0:00:01]} 4. d3 {[%emt 0:00:01]} Be7 {[%emt 0:00:02]} 5. Nc3 {[%emt 0:00:02]} O-O {[%emt 0:00:10]} 6. Bg5 {[%emt 0:00:01]} d6 {[%emt 0:00:06]} 7. h3 {[%emt 0:00:02]} Na5 {[%emt 0:00:04]} 8. Bb3 {[%emt 0:00:01]} Nxb3 {[%emt 0:00:01]} 9. axb3 {[%emt 0:00:01]} c6 {[%emt 0:00:12]} 10. O-O {[%emt 0:00:26]} h6 {[%emt 0:00:20]} 11. Bh4 {[%emt 0:00:08]} Nh7 {[%emt 0:01:32]} 12. Bxe7 {[%emt 0:00:28]} Qxe7 {[%emt 0:00:01]} 13. Re1 {[%emt 0:00:44]} f5 {[%emt 0:06:05]} 14. d4 {[%emt 0:02:04]} fxe4 {[%emt 0:04:58]} 15. Nxe4 {[%emt 0:00:19]} d5 {[%emt 0:00:08]} 16. Ng3 {[%emt 0:01:08]} e4 {[%emt 0:00:12]} 17. Ne5 {[%emt 0:00:03]} Qf6 {[%emt 0:01:12]} 18. Qe2 {[%emt 0:00:56]} Ng5 {[%emt 0:01:57]} 19. Rf1 {[%emt 0:05:23]} g6 {[%emt 0:00:52]} 20. Kh2 {[%emt 0:06:38]} Ne6 {[%emt 0:00:01]} 21. c3 {[%emt 0:00:00]} Nf4 {[%emt 0:00:07]} 22. Qe3 {[%emt 0:00:00]} Bxh3 {[%emt 0:00:26]} 23. gxh3 {[%emt 0:00:00]} Qh4 {[%emt 0:00:02]} 24. Ne2 {[%emt 0:00:00]} Kh7 {[%emt 0:00:22]} 25. Nxf4 {[%emt 0:00:00]} Rxf4 {[%emt 0:00:02]} 26. Qg3 {[%emt 0:00:00]} Qf6 {[%emt 0:00:01]} 27. Ng4 {[%emt 0:00:00]} Qf5 {[%emt 0:00:05]} 28. Ne3 {[%emt 0:00:00]} Qf6 {[%emt 0:00:01]} 29. Ng4 {[%emt 0:00:00]} Qf5 {[%emt 0:00:04]} 30. Rae1 {[%emt 0:00:00]} Rf8 {[%emt 0:00:27]} 31. Re2 {[%emt 0:00:00]} Rf3 {[%emt 0:00:15]} 32. Qg2 {[%emt 0:00:00]} Qh5 {[%emt 0:00:07]} 33. Re3 {[%emt 0:00:00]} R3f4 {[%emt 0:00:16]} 34. Rg3 {[%emt 0:00:00]} Qf5 {[%emt 0:00:17]} 35. Ne5 {[%emt 0:02:30]} g5 {[%emt 0:00:12]} 36. f3 {[%emt 0:00:00]} Rh4 {[%emt 0:00:14]} 37. Rg4 {[%emt 0:00:00]} Rh5 {[%emt 0:00:01]} 38. Kg1 {[%emt 0:00:00]} e3 {[%emt 0:00:05]} 39. Re1 {[%emt 0:00:00]} c5 {[%emt 0:00:08]} 40. Rxe3 {[%emt 0:00:00]} cxd4 {[%emt 0:00:01]} 41. cxd4 {[%emt 0:00:00]} Qb1+ {[%emt 0:00:15]} 42. Kh2 {[%emt 0:00:00]} Rc8 {[%emt 0:00:19]} 43. f4 {[%emt 0:00:00]} Rc2 {[%emt 0:00:22]} 44. Re2 {[%emt 0:00:00]} Rc1 {[%emt 0:00:10]} 45. fxg5 {[%emt 0:00:08]} hxg5 {[%emt 0:00:00]} 46. Nf3 {[%emt 0:00:10]} Rh1+ {[%emt 0:00:17]} 47. Kg3 {[%emt 0:00:36]} R5xh3+ {[%emt 0:00:07]} 48. Kf2 {[%emt 0:00:05]} Rf1+ {[%emt 0:00:11]} 49. Ke3 {[%emt 0:00:23]} Rhxf3+ {[%emt 0:00:11]} 50. Qxf3 {[%emt 0:00:04]} Qc1+ {[%emt 0:00:01]} 51. Kd3 {[%emt 0:00:21]} Rxf3+ {[%emt 0:00:01]} 0-1

[Event "Asian Amateur Rapid 2024"]
[Site "Al Ain"]
[Date "2024.12.15"]
[Round "2.19"]
[White "Al Namas, Kanan"]
[Black "Mujahid Bin Yazeed"]
[Result "0-1"]
[ECO "C54"]
[WhiteElo "1813"]
[BlackElo "1837"]
[Annotator "NA RC"]
[PlyCount "120"]
[EventDate "2024.12.15"]
[EventType "swiss"]
[EventCountry "UAE"]
[SourceTitle "playchess.com"]
[Source "ChessBase"]
[SourceQuality "1"]
[TimeControl "900+10"]

1. e4 {[%emt 0:00:05]} e5 {[%emt 0:00:08]} 2. Nf3 {[%emt 0:00:03]} Nc6 {[%emt 0:00:04]} 3. Bc4 {[%emt 0:00:04]} Bc5 {[%emt 0:00:08]} 4. O-O {[%emt 0:00:05]} d6 {[%emt 0:00:33]} 5. d3 {[%emt 0:00:13]} Nf6 {[%emt 0:00:24]} 6. c3 {[%emt 0:00:14]} Qe7 {[%emt 0:00:26]} 7. b4 {[%emt 0:00:10]} Bb6 {[%emt 0:00:03]} 8. a4 {[%emt 0:00:05]} a5 {[%emt 0:00:30]} 9. b5 {[%emt 0:00:51]} Nb8 {[%emt 0:00:04]} 10. Be3 {[%emt 0:02:38]} Nbd7 {[%emt 0:00:56]} 11. Nbd2 {[%emt 0:00:17]} c6 {[%emt 0:02:07]} 12. Rb1 {[%emt 0:02:43]} Bc7 {[%emt 0:01:13]} 13. Qb3 {[%emt 0:01:00]} O-O {[%emt 0:01:46]} 14. Rfe1 {[%emt 0:01:13]} h6 {[%emt 0:02:16]} 15. d4 {[%emt 0:00:23]} Ng4 {[%emt 0:00:26]} 16. d5 {[%emt 0:00:40]} Nxe3 {[%emt 0:00:20]} 17. Rxe3 {[%emt 0:00:09]} c5 {[%emt 0:00:51]} 18. Bd3 {[%emt 0:00:33]} b6 {[%emt 0:00:27]} 19. h3 {[%emt 0:00:16]} Nf6 {[%emt 0:00:19]} 20. Rf1 {[%emt 0:00:17]} Nh5 {[%emt 0:00:05]} 21. Ne1 {[%emt 0:01:15]} Nf4 {[%emt 0:00:59]} 22. Be2 {[%emt 0:01:19]} g6 {[%emt 0:00:59]} 23. Bg4 {[%emt 0:00:21]} Bxg4 {[%emt 0:00:41]} 24. hxg4 {[%emt 0:00:03]} Qh4 {[%emt 0:00:17]} 25. Qd1 {[%emt 0:01:50]} h5 {[%emt 0:01:23]} 26. g3 {[%emt 0:00:34]} Nh3+ {[%emt 0:00:16]} 27. Kg2 {[%emt 0:00:06]} Qxg4 {[%emt 0:00:04]} 28. Qxg4 {[%emt 0:00:44]} hxg4 {[%emt 0:00:02]} 29. f4 {[%emt 0:00:36]} exf4 {[%emt 0:01:13]} 30. gxf4 {[%emt 0:00:04]} f5 {[%emt 0:00:08]} 31. Nc4 {[%emt 0:00:50]} fxe4 {[%emt 0:00:26]} 32. Rxe4 {[%emt 0:00:02]} Rae8 {[%emt 0:00:16]} 33. Rxe8 {[%emt 0:00:09]} Rxe8 {[%emt 0:00:02]} 34. Kg3 {[%emt 0:00:18]} Re4 {[%emt 0:00:27]} 35. Nd2 {[%emt 0:00:04]} Re2 {[%emt 0:00:21]} 36. Nb1 {[%emt 0:00:32]} Ra2 {[%emt 0:00:12]} 37. Kxg4 {[%emt 0:00:03]} Nf2+ {[%emt 0:00:13]} 38. Kg5 {[%emt 0:00:08]} Kg7 {[%emt 0:00:07]} 39. f5 {[%emt 0:00:19]} Bd8+ {[%emt 0:00:05]} 40. Kf4 {[%emt 0:00:03]} g5+ {[%emt 0:00:10]} 41. Kf3 {[%emt 0:00:04]} Nd1 {[%emt 0:00:05]} 42. Nd3 {[%emt 0:00:12]} g4+ {[%emt 0:00:18]} 43. Kg3 {[%emt 0:00:01]} Ne3 {[%emt 0:00:07]} 44. Re1 {[%emt 0:00:04]} Bg5 {[%emt 0:00:05]} 45. Nf2 {[%emt 0:00:08]} Kf6 {[%emt 0:00:24]} 46. Nxg4+ {[%emt 0:00:03]} Nxg4 {[%emt 0:00:07]} 47. Kxg4 {[%emt 0:00:02]} Rg2+ {[%emt 0:00:06]} 48. Kf3 {[%emt 0:00:01]} Rb2 {[%emt 0:00:08]} 49. Ke4 {[%emt 0:00:14]} Ra2 {[%emt 0:00:07]} 50. Kd3 {[%emt 0:00:12]} Bf4 {[%emt 0:00:10]} 51. Rf1 {[%emt 0:00:17]} Kxf5 {[%emt 0:00:11]} 52. c4 {[%emt 0:00:19]} Rxa4 {[%emt 0:00:06]} 53. Nc3 {[%emt 0:00:04]} Ra3 {[%emt 0:00:04]} 54. Kc2 {[%emt 0:00:03]} a4 {[%emt 0:00:24]} 55. Kb2 {[%emt 0:00:12]} Rb3+ {[%emt 0:00:03]} 56. Kc2 {[%emt 0:00:01]} Rb4 {[%emt 0:00:08]} 57. Kd3 {[%emt 0:00:01]} a3 {[%emt 0:00:05]} 58. Ra1 {[%emt 0:00:17]} Rb3 {[%emt 0:00:03]} 59. Kc2 {[%emt 0:00:38]} Rb2+ {[%emt 0:00:01]} 60. Kd3 {[%emt 0:00:10]} Rd2# {[%emt 0:00:00]} 0-1